fUST/lending_fUST_20251006
["ID","MTS","AMOUNT","RATE_DAILY","PERIOD"]
[389565466,1759717833614,-652.05,0.00016438,2]
[389565467,1759717833623,-506.00826198,0.00016438,2]
[389565468,1759717833633,-505.08974217,0.00016438,2]
[389565469,1759717833642,-500.0,0.00016438,2]
[389565470,1759717833651,-507.68,0.00016438,2]
[389565471,1759717833660,-500.0,0.00016438,2]
[389565472,1759717833671,-633.79510602,0.00016438,2]
[389565473,1759717833680,-500.0,0.00016438,2]
[389565474,1759717833689,-510.12428171,0.00016438,2]
[389565475,1759717833699,-500.0,0.00016438,2]
[389565476,1759717833708,-500.0,0.00016438,2]
[389565477,1759717833717,-500.0,0.00016438,2]
[389565478,1759717833726,-500.0,0.00016438,2]
[389565479,1759717833736,-500.0,0.00016438,2]
[389565480,1759717833745,-903.03,0.00016438,2]
[389565481,1759717833754,-1186.77,0.00016438,2]
[389565482,1759717833763,-500.0,0.00016438,2]
[389565483,1759717833772,-500.0,0.00016438,2]
[389565484,1759717833782,-500.0,0.00016438,2]
[389565485,1759717833792,-500.0,0.00016438,2]
[389565486,1759717833802,-500.0,0.00016438,2]
[389565487,1759717833811,-500.0,0.00016438,2]
[389565488,1759717833820,-151.0,0.00016438,2]
[389565489,1759717833829,-151.89058584,0.00016438,2]
[389565490,1759717833838,-151.0,0.00016438,2]
[389565491,1759717833847,-1670.37,0.00016438,2]
[389565492,1759717833856,-500.0,0.00016438,2]
[389565493,1759717833866,-500.0,0.00016438,2]
[389565494,1759717833875,-1549.03,0.00016438,2]
[389565495,1759717833884,-831.96,0.00016438,2]
[389565496,1759717833893,-500.0,0.00016438,2]
[389565497,1759717833902,-500.0,0.00016438,2]
[389565498,1759717833911,-500.0,0.00016438,2]
[389565499,1759717833920,-500.0,0.00016438,2]
[389565500,1759717833929,-500.0,0.00016438,2]
[389565501,1759717833938,-1081.35,0.00016438,2]
[389565502,1759717833947,-500.0,0.00016438,2]
[389565503,1759717833957,-504.28349887,0.00016438,2]
[389565504,1759717833966,-500.0,0.00016438,2]
[389565505,1759717833975,-500.0,0.00016438,2]
[389565506,1759717833983,-504.50332403,0.00016438,2]
[389565507,1759717833993,-3978.22,0.00016438,2]
[389565508,1759717834002,-500.0,0.00016438,2]
[389565509,1759717834011,-1225.71,0.00016438,2]
[389565510,1759717834021,-500.0,0.00016438,2]
[389565511,1759717834031,-1457.87,0.00016438,2]
[389565512,1759717834040,-540.29,0.00016438,2]
[389565513,1759717834049,-880.2,0.00016438,2]
[389565514,1759717834058,-888.94,0.00016438,2]
[389565515,1759717834067,-500.0,0.00016438,2]
[389565516,1759717834077,-500.0,0.00016438,2]
[389565517,1759717834086,-500.0,0.00016438,2]
[389565518,1759717834095,-500.0,0.00016438,2]
[389565519,1759717834105,-500.0,0.00016438,2]
[389565520,1759717834114,-744.46,0.00016438,2]
[389565521,1759717834123,-608.41,0.00016438,2]
[389565522,1759717834133,-517.27,0.00016438,2]
[389565523,1759717834142,-1338.16,0.00016438,2]
[389565524,1759717834151,-208.41463517,0.00016438,2]
[389565525,1759717834160,-613.76,0.00016438,2]
[389565526,1759717834170,-182.77744851,0.00016438,2]
[389565527,1759717834179,-1799.07,0.00016438,2]
[389565528,1759717834189,-164.71685554,0.00016438,2]
[389565529,1759717834198,-500.0,0.00016438,2]
[389565530,1759717834207,-754.42,0.00016438,2]
[389565531,1759717834216,-1185.6,0.00016438,2]
[389565532,1759717834230,-830.8,0.00016438,2]
[389565533,1759717834239,-500.0,0.00016438,2]
[389565534,1759717834248,-500.0,0.00016438,2]
[389565535,1759717834258,-500.0,0.00016438,2]
[389565536,1759717834267,-3328.48,0.00016438,2]
[389565537,1759717834277,-589.68,0.00016438,2]
[389565538,1759717834287,-500.0,0.00016438,2]
[389565539,1759717834297,-500.0,0.00016438,2]
[389565540,1759717834305,-151.0,0.00016438,2]
[389565541,1759717834315,-151.16814361,0.00016438,2]
[389565542,1759717834324,-500.0,0.00016438,2]
[389565543,1759717834333,-151.0,0.00016438,2]
[389565544,1759717834341,-500.0,0.00016438,2]
[389565545,1759717834351,-151.0,0.00016438,2]
[389565546,1759717834360,-1336.7,0.00016438,2]
[389565547,1759717834368,-500.0,0.00016438,2]
[389565548,1759717834378,-504.07649815,0.00016438,2]
[389565549,1759717834387,-500.0,0.00016438,2]
[389565550,1759717834395,-734.64,0.00016438,2]
[389565551,1759717834404,-151.0,0.00016438,2]
[389565552,1759717834414,-2950.6,0.00016438,2]
[389565553,1759717834423,-967.79032971,0.00016438,2]
[389565554,1759717834437,-6738.86967029,0.00016438,2]
[389565555,1759717834446,-582.03392542,0.00016438,2]
[389565556,1759717834455,-500.0,0.00016438,2]
[389565557,1759717834464,-155.73803925,0.00016438,2]
[389565558,1759717834473,-3369.41,0.00016438,2]
[389565559,1759717834482,-500.0,0.00016438,2]
[389565560,1759717834491,-273.58865287,0.00016438,2]
[389565561,1759717834500,-3356.49,0.00016438,2]
[389565562,1759717834509,-500.0,0.00016438,2]
[389565563,1759717834518,-9743.46,0.00016438,2]
[389565564,1759717834528,-1490.68,0.00016438,2]
[389565565,1759717834538,-500.0,0.00016438,2]
[389565566,1759717834547,-2199.58,0.00016438,2]
[389565567,1759717834556,-500.0,0.00016438,2]
[389565568,1759717834564,-500.0,0.00016438,2]
[389565569,1759717834573,-500.0,0.00016438,2]
[389565570,1759717834582,-500.0,0.00016438,2]
[389565571,1759717834591,-500.0,0.00016438,2]
[389565572,1759717834600,-500.0,0.00016438,2]
[389565573,1759717834609,-1399.3,0.00016438,2]
[389565574,1759717834618,-6319.52,0.00016438,2]
[389565575,1759717834627,-1165.7,0.00016438,2]
[389565576,1759717834636,-599.75,0.00016438,2]
[389565577,1759717834645,-500.0,0.00016438,2]
[389565578,1759717834654,-500.0,0.00016438,2]
[389565579,1759717834665,-591.56,0.00016438,2]
[389565580,1759717834674,-1075.33,0.00016438,2]
[389565581,1759717834683,-622.61,0.00016438,2]
[389565582,1759717834693,-1643.8,0.00016438,2]
[389565583,1759717834702,-500.0,0.00016438,2]
[389565584,1759717834712,-2292.43,0.00016438,2]
[389565585,1759717834721,-500.0,0.00016438,2]
[389565586,1759717834731,-507.3,0.00016438,2]
[389565587,1759717834740,-500.0,0.00016438,2]
[389565588,1759717834750,-475.71181112,0.00016438,2]
[389565589,1759717834759,-850.2,0.00016438,2]
[389565590,1759717834768,-500.0,0.00016438,2]
[389565591,1759717834778,-952.45,0.00016438,2]
[389565592,1759717834787,-500.0,0.00016438,2]
[389565593,1759717834796,-500.0,0.00016438,2]
[389565594,1759717834806,-151.65779137,0.00016438,2]
[389565595,1759717834816,-500.0,0.00016438,2]
[389565596,1759717834826,-3553.35,0.00016438,2]
[389565597,1759717834836,-151.42471463,0.00016438,2]
[389565598,1759717834845,-500.0,0.00016438,2]
[389565599,1759717834855,-151.0,0.00016438,2]
[389565600,1759717834864,-500.0,0.00016438,2]
[389565601,1759717834873,-151.0,0.00016438,2]
[389565602,1759717834882,-500.0,0.00016438,2]
[389565603,1759717834892,-1223.0,0.00016438,2]
[389565604,1759717834901,-923.65,0.00016438,2]
[389565605,1759717834911,-1104.02,0.00016438,2]
[389565606,1759717834920,-500.0,0.00016438,2]
[389565607,1759717834930,-500.0,0.00016438,2]
[389565608,1759717834939,-500.0,0.00016438,2]
[389565609,1759717834948,-175.46005899,0.00016438,2]
[389565610,1759717834958,-622.83,0.00016438,2]
[389565611,1759717834967,-500.0,0.00016438,2]
[389565612,1759717834977,-160.40869653,0.00016438,2]
[389565613,1759717834986,-7025.69,0.00016438,2]
[389565614,1759717834995,-3108.11,0.00016438,2]
[389565615,1759717835005,-500.0,0.00016438,2]
[389565616,1759717835014,-500.0,0.00016438,2]
[389565617,1759717835023,-1359.59,0.00016438,2]
[389565618,1759717835033,-500.0,0.00016438,2]
[389565619,1759717835042,-640.035559,0.00016438,2]
[389565620,1759717835051,-500.0,0.00016438,2]
[389565621,1759717835061,-500.0,0.00016438,2]
[389565622,1759717835070,-529.3,0.00016438,2]
[389565623,1759717835236,-500.0,0.00016438,2]
[389565624,1759717835253,-500.0,0.00016438,2]
[389565625,1759717835264,-1500.0,0.00016438,2]
[389565626,1759717835274,-451.0,0.00016518,2]
[389565627,1759717835285,-451.0,0.00016601,2]
[389565628,1759717835294,-3684.99917663,0.00016612,2]
[389565629,1759717835303,-451.0,0.0001662,2]
[389565630,1759717835314,-2145.34142429,0.00016646,2]
[389565631,1759717835323,-451.0,0.00016666,2]
[389565632,1759717835333,-18603.8837,0.00016702,2]
[389565633,1759717835342,-250.0,0.00016702,2]
[389565634,1759717835351,-250.0,0.00016702,2]
[389565635,1759717835361,-250.0,0.00016702,2]
[389565636,1759717835370,-250.0,0.00016702,2]
[389565637,1759717835380,-250.0,0.00016702,2]
[389565638,1759717835389,-250.0,0.00016702,2]
[389565639,1759717835398,-250.0,0.00016702,2]
[389565640,1759717835406,-250.0,0.00016702,2]
[389565641,1759717835415,-250.0,0.00016702,2]
[389565642,1759717835425,-250.0,0.00016702,2]
[389565643,1759717835434,-250.0,0.00016702,2]
[389565644,1759717835444,-250.0,0.00016702,2]
[389565645,1759717835453,-250.0,0.00016702,2]
[389565646,1759717835462,-151.32470181,0.00016702,2]
[389565647,1759717835471,-164.88835538,0.00016702,2]
[389565648,1759717835480,-152.42380052,0.00016702,2]
[389565649,1759717835490,-151.39936963,0.00016712,2]
[389565650,1759717835499,-199.21223264,0.00016712,2]
[389565651,1759717835507,-500.0,0.00016712,2]
[389565652,1759717835516,-151.0,0.00016712,2]
[389565653,1759717835525,-151.0,0.00016712,2]
[389565654,1759717835535,-151.0,0.00016712,2]
[389565655,1759717835545,-151.0,0.00016712,2]
[389565656,1759717835554,-501.26010011,0.00016712,2]
[389565657,1759717835563,-500.0,0.00016712,2]
[389565658,1759717835573,-151.74753926,0.00016712,2]
[389565659,1759717835581,-151.0,0.00016712,2]
[389565660,1759717835591,-276.35203984,0.00016712,2]
[389565661,1759717835599,-151.0,0.00016712,2]
[389565662,1759717835608,-500.0,0.00016712,2]
[389565663,1759717835617,-151.0,0.00016712,2]
[389565664,1759717835626,-260.19378115,0.00016712,2]
[389565665,1759717835635,-1223.0,0.00016712,2]
[389565666,1759717835644,-500.0,0.00016712,2]
[389565667,1759717835653,-500.0,0.00016712,2]
[389565668,1759717835663,-500.0,0.00016712,2]
[389565669,1759717835673,-288.23516748,0.00016712,2]
[389565670,1759717835682,-777.7,0.00016712,2]
[389565671,1759717835691,-500.0,0.00016712,2]
[389565672,1759717835700,-151.0,0.00016712,2]
[389565673,1759717835709,-151.0,0.00016712,2]
[389565674,1759717835719,-151.0,0.00016712,2]
[389565675,1759717835728,-151.0,0.00016712,2]
[389565676,1759717835737,-151.30364,0.00016712,2]
[389565677,1759717835747,-151.0,0.00016712,2]
[389565678,1759717835757,-151.0,0.00016712,2]
[389565679,1759717835766,-151.0,0.00016712,2]
[389565680,1759717835776,-159.00783373,0.00016712,2]
[389565681,1759717835787,-151.0,0.00016712,2]
[389565682,1759717835796,-218.1673079,0.00016712,2]
[389565683,1759717835805,-500.0,0.00016712,2]
[389565684,1759717835814,-500.0,0.00016712,2]
[389565685,1759717835824,-151.0,0.00016712,2]
[389565686,1759717835833,-536.36,0.00016712,2]
[389565687,1759717835842,-500.0,0.00016712,2]
[389565688,1759717835852,-151.0,0.00016712,2]
[389565689,1759717835861,-151.0,0.00016712,2]
[389565690,1759717835870,-500.0,0.00016712,2]
[389565691,1759717835879,-151.0,0.00016712,2]
[389565692,1759717835889,-500.0,0.00016712,2]
[389565693,1759717835898,-500.0,0.00016712,2]
[389565694,1759717835907,-500.0,0.00016712,2]
[389565695,1759717835917,-500.0,0.00016712,2]
[389565696,1759717835926,-1235.32,0.00016712,2]
[389565697,1759717835936,-166.791437,0.00016712,2]
[389565698,1759717835945,-500.0,0.00016712,2]
[389565699,1759717835955,-151.0,0.00016712,2]
[389565700,1759717835964,-151.0,0.00016712,2]
[389565701,1759717835974,-151.0,0.00016712,2]
[389565702,1759717835983,-151.0,0.00016712,2]
[389565703,1759717835993,-151.0,0.00016712,2]
[389565704,1759717836002,-151.0,0.00016712,2]
[389565705,1759717836012,-805.59,0.00016712,2]
[389565706,1759717836021,-151.0,0.00016712,2]
[389565707,1759717836033,-151.0,0.00016712,2]
[389565708,1759717836043,-151.0,0.00016712,2]
[389565709,1759717836052,-725.3,0.00016712,2]
[389565710,1759717836061,-500.0,0.00016712,2]
[389565711,1759717836070,-753.28,0.00016712,2]
[389565712,1759717836079,-151.0,0.00016712,2]
[389565713,1759717836088,-500.0,0.00016712,2]
[389565714,1759717836097,-151.0,0.00016712,2]
[389565715,1759717836106,-151.0,0.00016712,2]
[389565716,1759717836115,-151.0,0.00016712,2]
[389565717,1759717836125,-151.0,0.00016712,2]
[389565718,1759717836134,-500.0,0.00016712,2]
[389565719,1759717836143,-151.0,0.00016712,2]
[389565720,1759717836152,-151.0,0.00016712,2]
[389565721,1759717836161,-151.0,0.00016712,2]
[389565722,1759717836169,-500.0,0.00016712,2]
[389565723,1759717836179,-151.0,0.00016712,2]
[389565724,1759717836188,-151.0,0.00016712,2]
[389565725,1759717836197,-151.0,0.00016712,2]
[389565726,1759717836206,-500.0,0.00016712,2]
[389565727,1759717836216,-161.255461,0.00016712,2]
[389565728,1759717836228,-151.0,0.00016712,2]
[389565729,1759717836237,-151.0,0.00016712,2]
[389565730,1759717836246,-151.0,0.00016712,2]
[389565731,1759717836255,-151.0,0.00016712,2]
[389565732,1759717836264,-500.0,0.00016712,2]
[389565733,1759717836274,-500.0,0.00016712,2]
[389565734,1759717836283,-500.0,0.00016712,2]
[389565735,1759717836292,-442.69287995,0.00016712,2]
[389565736,1759717836303,-334.48518464,0.00016712,2]
[389565737,1759717836312,-151.0,0.00016712,2]
[389565738,1759717836322,-297.777855,0.00016712,2]
[389565739,1759717836331,-151.0,0.00016712,2]
[389565740,1759717836340,-603.56,0.00016712,2]
[389565741,1759717836348,-151.0,0.00016712,2]
[389565742,1759717836358,-151.0,0.00016712,2]
[389565743,1759717836367,-151.0,0.00016712,2]
[389565744,1759717836377,-151.0,0.00016712,2]
[389565745,1759717836386,-500.0,0.00016712,2]
[389565746,1759717836395,-500.0,0.00016712,2]
[389565747,1759717836404,-500.0,0.00016712,2]
[389565748,1759717836413,-151.0,0.00016712,2]
[389565749,1759717836424,-500.0,0.00016712,2]
[389565750,1759717836433,-652.05,0.00016712,2]
[389565751,1759717836442,-151.0,0.00016712,2]
[389565752,1759717836451,-296.870258,0.00016712,2]
[389565753,1759717836460,-507.68,0.00016712,2]
[389565754,1759717836469,-500.0,0.00016712,2]
[389565755,1759717836478,-500.0,0.00016712,2]
[389565756,1759717836487,-151.0,0.00016712,2]
[389565757,1759717836497,-500.0,0.00016712,2]
[389565758,1759717836506,-151.0,0.00016712,2]
[389565759,1759717836515,-151.0,0.00016712,2]
[389565760,1759717836524,-151.0,0.00016712,2]
[389565761,1759717836535,-174.722422,0.00016712,2]
[389565762,1759717836544,-500.0,0.00016712,2]
[389565763,1759717836553,-500.0,0.00016712,2]
[389565764,1759717836562,-174.722422,0.00016712,2]
[389565765,1759717836571,-500.0,0.00016712,2]
[389565766,1759717836580,-174.722422,0.00016712,2]
[389565767,1759717836590,-174.722422,0.00016712,2]
[389565768,1759717836598,-500.0,0.00016712,2]
[389565769,1759717836610,-500.0,0.00016712,2]
[389565770,1759717836619,-903.03,0.00016712,2]
[389565771,1759717836628,-1186.77,0.00016712,2]
[389565772,1759717836638,-151.0,0.00016712,2]
[389565773,1759717836647,-151.0,0.00016712,2]
[389565774,1759717836657,-151.0,0.00016712,2]
[389565775,1759717836670,-151.0,0.00016712,2]
[389565776,1759717836680,-500.0,0.00016712,2]
[389565777,1759717836689,-151.0,0.00016712,2]
[389565778,1759717836699,-500.0,0.00016712,2]
[389565779,1759717836707,-500.0,0.00016712,2]
[389565780,1759717836716,-500.0,0.00016712,2]
[389565781,1759717836725,-1670.37,0.00016712,2]
[389565782,1759717836735,-151.0,0.00016712,2]
[389565783,1759717836744,-500.0,0.00016712,2]
[389565784,1759717836753,-500.0,0.00016712,2]
[389565785,1759717836763,-1549.03,0.00016712,2]
[389565786,1759717836772,-155.652864,0.00016712,2]
[389565787,1759717836781,-151.0,0.00016712,2]
[389565788,1759717836790,-151.0,0.00016712,2]
[389565789,1759717836799,-151.0,0.00016712,2]
[389565790,1759717836809,-831.96,0.00016712,2]
[389565791,1759717836818,-500.0,0.00016712,2]
[389565792,1759717836827,-500.0,0.00016712,2]
[389565793,1759717836836,-500.0,0.00016712,2]
[389565794,1759717836846,-500.0,0.00016712,2]
[389565795,1759717836856,-1081.35,0.00016712,2]
[389565796,1759717836865,-151.0,0.00016712,2]
[389565797,1759717836874,-505.57167411,0.00016712,2]
[389565798,1759717836883,-151.0,0.00016712,2]
[389565799,1759717836892,-589.36520358,0.00016712,2]
[389565800,1759717836901,-500.0,0.00016712,2]
[389565801,1759717836911,-3978.22,0.00016712,2]
[389565802,1759717836920,-500.0,0.00016712,2]
[389565803,1759717836929,-1225.71,0.00016712,2]
[389565804,1759717836939,-1457.87,0.00016712,2]
[389565805,1759717836948,-154.583363,0.00016712,2]
[389565806,1759717836958,-540.29,0.00016712,2]
[389565807,1759717836968,-880.2,0.00016712,2]
[389565808,1759717836977,-888.94,0.00016712,2]
[389565809,1759717836987,-151.0,0.00016712,2]
[389565810,1759717836996,-500.0,0.00016712,2]
[389565811,1759717837007,-500.0,0.00016712,2]
[389565812,1759717837017,-336.56318953,0.00016712,2]
[389565813,1759717837026,-744.46,0.00016712,2]
[389565814,1759717837036,-608.41,0.00016712,2]
[389565815,1759717837045,-722.160271,0.00016712,2]
[389565816,1759717837054,-722.160271,0.00016712,2]
[389565817,1759717837063,-722.160271,0.00016712,2]
[389565818,1759717837072,-722.160271,0.00016712,2]
[389565819,1759717837081,-517.27,0.00016712,2]
[389565820,1759717837090,-1338.16,0.00016712,2]
[389565821,1759717837099,-151.0,0.00016712,2]
[389565822,1759717837108,-404.635084,0.00016712,2]
[389565823,1759717837117,-151.0,0.00016712,2]
[389565824,1759717837126,-404.635084,0.00016712,2]
[389565825,1759717837134,-613.76,0.00016712,2]
[389565826,1759717837143,-404.635084,0.00016712,2]
[389565827,1759717837152,-151.0,0.00016712,2]
[389565828,1759717837162,-404.635084,0.00016712,2]
[389565829,1759717837172,-151.0,0.00016712,2]
[389565830,1759717837181,-151.0,0.00016712,2]
[389565831,1759717837190,-151.0,0.00016712,2]
[389565832,1759717837199,-151.0,0.00016712,2]
[389565833,1759717837207,-197.166444,0.00016712,2]
[389565834,1759717837216,-151.0,0.00016712,2]
[389565835,1759717837228,-1799.07,0.00016712,2]
[389565836,1759717837238,-500.0,0.00016712,2]
[389565837,1759717837246,-151.0,0.00016712,2]
[389565838,1759717837255,-189.949349,0.00016712,2]
[389565839,1759717837264,-151.0,0.00016712,2]
[389565840,1759717837275,-754.42,0.00016712,2]
[389565841,1759717837285,-151.0,0.00016712,2]
[389565842,1759717837293,-189.949349,0.00016712,2]
[389565843,1759717837302,-151.0,0.00016712,2]
[389565844,1759717837312,-189.949349,0.00016712,2]
[389565845,1759717837322,-189.949349,0.00016712,2]
[389565846,1759717837331,-212.666894,0.00016712,2]
[389565847,1759717837339,-212.666894,0.00016712,2]
[389565848,1759717837355,-212.666894,0.00016712,2]
[389565849,1759717837365,-212.666894,0.00016712,2]
[389565850,1759717837374,-1185.6,0.00016712,2]
[389565851,1759717837383,-151.0,0.00016712,2]
[389565852,1759717837393,-830.8,0.00016712,2]
[389565853,1759717837402,-500.0,0.00016712,2]
[389565854,1759717837411,-500.0,0.00016712,2]
[389565855,1759717837420,-3328.48,0.00016712,2]
[389565856,1759717837429,-589.68,0.00016712,2]
[389565857,1759717837438,-500.0,0.00016712,2]
[389565858,1759717837447,-500.0,0.00016712,2]
[389565859,1759717837456,-500.0,0.00016712,2]
[389565860,1759717837465,-500.0,0.00016712,2]
[389565861,1759717837474,-1336.7,0.00016712,2]
[389565862,1759717837484,-151.0,0.00016712,2]
[389565863,1759717837494,-500.0,0.00016712,2]
[389565864,1759717837503,-151.0,0.00016712,2]
[389565865,1759717837512,-151.0,0.00016712,2]
[389565866,1759717837521,-500.0,0.00016712,2]
[389565867,1759717837530,-734.64,0.00016712,2]
[389565868,1759717837539,-2950.6,0.00016712,2]
[389565869,1759717837584,-7706.66,0.00016712,2]
[389565870,1759717837593,-151.0,0.00016712,2]
[389565871,1759717837602,-151.0,0.00016712,2]
[389565872,1759717837611,-151.34328,0.00016712,2]
[389565873,1759717837620,-178.612494,0.00016712,2]
[389565874,1759717837629,-3369.41,0.00016712,2]
[389565875,1759717837638,-151.0,0.00016712,2]
[389565876,1759717837647,-151.0,0.00016712,2]
[389565877,1759717837655,-151.0,0.00016712,2]
[389565878,1759717837665,-500.0,0.00016712,2]
[389565879,1759717837675,-151.0,0.00016712,2]
[389565880,1759717837683,-151.0,0.00016712,2]
[389565881,1759717837693,-153.237772,0.00016712,2]
[389565882,1759717837702,-151.0,0.00016712,2]
[389565883,1759717837711,-3356.49,0.00016712,2]
[389565884,1759717837720,-500.0,0.00016712,2]
[389565885,1759717837729,-9743.46,0.00016712,2]
[389565886,1759717837738,-151.0,0.00016712,2]
[389565887,1759717837748,-151.0,0.00016712,2]
[389565888,1759717837762,-151.0,0.00016712,2]
[389565889,1759717837771,-151.0,0.00016712,2]
[389565890,1759717837780,-151.0,0.00016712,2]
[389565891,1759717837789,-151.0,0.00016712,2]
[389565892,1759717837798,-151.0,0.00016712,2]
[389565893,1759717837806,-257.936938,0.00016712,2]
[389565894,1759717837815,-151.0,0.00016712,2]
[389565895,1759717837824,-151.0,0.00016712,2]
[389565896,1759717837833,-151.0,0.00016712,2]
[389565897,1759717837841,-257.936938,0.00016712,2]
[389565898,1759717837850,-200.249098,0.00016712,2]
[389565899,1759717837860,-151.0,0.00016712,2]
[389565900,1759717837870,-151.0,0.00016712,2]
[389565901,1759717837878,-257.936938,0.00016712,2]
[389565902,1759717837887,-151.0,0.00016712,2]
[389565903,1759717837896,-257.936938,0.00016712,2]
[389565904,1759717837905,-151.0,0.00016712,2]
[389565905,1759717837914,-151.0,0.00016712,2]
[389565906,1759717837922,-257.936938,0.00016712,2]
[389565907,1759717837931,-257.936938,0.00016712,2]
[389565908,1759717837940,-151.0,0.00016712,2]
[389565909,1759717837949,-151.0,0.00016712,2]
[389565910,1759717837958,-151.0,0.00016712,2]
[389565911,1759717837967,-257.936938,0.00016712,2]
[389565912,1759717837975,-257.936938,0.00016712,2]
[389565913,1759717837985,-151.0,0.00016712,2]
[389565914,1759717837993,-151.0,0.00016712,2]
[389565915,1759717838002,-1490.68,0.00016712,2]
[389565916,1759717838011,-2199.58,0.00016712,2]
[389565917,1759717838020,-500.0,0.00016712,2]
[389565918,1759717838030,-500.0,0.00016712,2]
[389565919,1759717838039,-151.0,0.00016712,2]
[389565920,1759717838048,-151.0,0.00016712,2]
[389565921,1759717838057,-151.0,0.00016712,2]
[389565922,1759717838066,-151.0,0.00016712,2]
[389565923,1759717838076,-500.0,0.00016712,2]
[389565924,1759717838085,-151.0,0.00016712,2]
[389565925,1759717838094,-500.0,0.00016712,2]
[389565926,1759717838105,-151.0,0.00016712,2]
[389565927,1759717838121,-500.0,0.00016712,2]
[389565928,1759717838131,-151.0,0.00016712,2]
[389565929,1759717838140,-174.9948,0.00016712,2]
[389565930,1759717838149,-226.615595,0.00016712,2]
[389565931,1759717838157,-226.615595,0.00016712,2]
[389565932,1759717838166,-1399.3,0.00016712,2]
[389565933,1759717838176,-226.615595,0.00016712,2]
[389565934,1759717838185,-6319.52,0.00016712,2]
[389565935,1759717838195,-226.615595,0.00016712,2]
[389565936,1759717838204,-1165.7,0.00016712,2]
[389565937,1759717838213,-226.615595,0.00016712,2]
[389565938,1759717838223,-226.615595,0.00016712,2]
[389565939,1759717838232,-226.615595,0.00016712,2]
[389565940,1759717838245,-226.615595,0.00016712,2]
[389565942,1759717838255,-599.75,0.00016712,2]
[389565943,1759717838265,-500.0,0.00016712,2]
[389565944,1759717838275,-151.0,0.00016712,2]
[389565945,1759717838284,-152.184074,0.00016712,2]
[389565946,1759717838293,-591.56,0.00016712,2]
[389565947,1759717838302,-1075.33,0.00016712,2]
[389565949,1759717838314,-282.528779,0.00016712,2]
[389565950,1759717838323,-282.528779,0.00016712,2]
[389565951,1759717838333,-282.528779,0.00016712,2]
[389565952,1759717838341,-282.528779,0.00016712,2]
[389565953,1759717838350,-282.528779,0.00016712,2]
[389565954,1759717838360,-282.528779,0.00016712,2]
[389565955,1759717838370,-151.0,0.00016712,2]
[389565956,1759717838380,-151.0,0.00016712,2]
[389565957,1759717838389,-282.528779,0.00016712,2]
[389565958,1759717838399,-282.528779,0.00016712,2]
[389565959,1759717838408,-193.731951,0.00016712,2]
[389565961,1759717838417,-152.300394,0.00016712,2]
[389565962,1759717838425,-193.731951,0.00016712,2]
[389565963,1759717838434,-193.731951,0.00016712,2]
[389565964,1759717838443,-622.61,0.00016712,2]
[389565965,1759717838452,-193.731951,0.00016712,2]
[389565966,1759717838462,-193.731951,0.00016712,2]
[389565967,1759717838471,-1643.8,0.00016712,2]
[389565969,1759717838481,-193.731951,0.00016712,2]